bitfinex/quotes_ETHUSD_20250414
["timestamp","ask_amount","ask_price","bid_price","bid_amount"]
[1744651851258,6.08978,1642.1,1641.8,7.7869]
[1744651851506,6.09028,1642.0,1641.8,7.7869]
[1744651851666,6.0905,1641.9,1641.8,7.025]
[1744651851871,6.09028,1642.0,1641.8,7.025]
[1744651852186,12.18007,1642.1,1641.8,0.7025]
[1744651852370,12.18007,1642.1,1641.7,12.18213]
[1744651852572,6.08991,1642.1,1641.8,6.09073]
[1744651852803,12.17988,1642.1,1641.7,12.18238]
[1744651853299,6.08991,1642.1,1641.7,6.09119]
[1744651853504,6.09024,1642.0,1641.7,1.00793163]
[1744651853852,6.09071,1641.9,1641.5,15.30566198]
[1744651854089,6.91063,1642.0,1641.6,6.09149]
[1744651854303,0.8204,1642.0,1641.7,6.09113]
[1744651854470,12.17995,1642.1,1641.7,12.18227]
[1744651854676,6.08983,1642.1,1641.8,7.36999946]
[1744651854886,6.08945,1642.2,1641.9,0.8225]
[1744651855060,6.09055,1641.9,1641.5,8.45187198]
[1744651855259,12.18059,1642.0,1641.6,6.91378]
[1744651855485,6.90626,1642.1,1641.6,0.8225]
[1744651855676,6.0906,1641.9,1641.5,20.63564198]
[1744651855889,12.18052,1642.0,1641.6,12.18307]
[1744651856205,6.92429,1642.3,1641.8,0.7898]
[1744651856357,6.13872,1642.4,1641.8,4.3309188]
[1744651856559,6.08944,1642.2,1641.9,6.52347188]
[1744651856858,12.17855,1642.3,1642.0,6.09003]
[1744651857063,6.08918,1642.3,1641.9,12.61387188]
[1744651857259,6.08939,1642.2,1641.9,6.52347188]
[1744651857464,6.08992,1642.1,1641.9,0.43309188]
[1744651857791,6.08992,1642.1,1641.8,0.7898]
[1744651857792,6.09013,1642.0,1641.8,0.7898]
[1744651858324,12.17992,1642.1,1641.8,6.88066]
[1744651858686,6.09015,1642.0,1641.8,0.7898]
[1744651859026,6.0905,1641.9,1641.8,1.297204]
[1744651859315,6.9105,1642.0,1641.5,8.45187198]
[1744651859476,6.091,1641.8,1641.6,4.0]
[1744651859680,6.091,1641.8,1641.5,14.54375198]
[1744651859877,6.0905,1641.9,1641.5,14.54372198]
[1744651860084,6.0905,1641.9,1641.6,0.75187286]
[1744651860280,3.0,1642.2,1641.7,6.09111]
[1744651860590,6.09,1642.1,1641.8,6.09064]
[1744651860794,12.18,1642.1,1641.7,6.84254]
[1744651861105,6.09105,1641.8,1641.5,9.23207198]
[1744651861325,6.09137,1641.7,1641.5,7.025]
[1744651861496,6.09161,1641.6,1641.3,0.7802]
[1744651861694,6.09136,1641.7,1641.4,4.0]
[1744651861913,6.09178,1641.6,1641.4,4.0]
[1744651862081,6.09198,1641.5,1641.2,13.1178]
[1744651862411,6.09182,1641.6,1641.3,1.31178]
[1744651862710,12.18362,1641.6,1641.3,7.4044]
[1744651862911,6.0918,1641.6,1641.3,7.4044]
[1744651863117,6.09104,1641.8,1641.5,6.87938]
[1744651863289,6.09133,1641.7,1641.5,0.69402988]
[1744651863612,6.09134,1641.7,1641.3,7.40441]
[1744651863912,6.09134,1641.7,1641.3,1.31178]
[1744651864112,13.00136,1641.9,1641.3,4.8528988]
[1744651864277,0.802,1642.1,1641.7,6.0909]
[1744651864475,6.08947,1642.2,1641.6,7.025]
[1744651864708,6.08988,1642.1,1641.8,6.09062]
[1744651864897,6.08988,1642.1,1641.7,6.09112]
[1744651865092,6.09034,1642.0,1641.6,13.11647]
[1744651865275,6.0906,1641.9,1641.6,14.509417]
[1744651865499,6.0906,1641.9,1641.6,8.417947]
[1744651865714,6.0906,1641.9,1641.6,14.509197]
[1744651865715,6.09069,1641.9,1641.6,14.509197]
[1744651865909,6.09069,1641.9,1641.6,8.417947]
[1744651866225,6.09098,1641.8,1641.4,6.09227]
[1744651866394,6.09098,1641.8,1641.4,6.15318439]
[1744651866593,6.09084,1641.9,1641.5,6.09177]
[1744651867221,0.7843,1642.0,1641.5,0.7991]
[1744651867386,0.7843,1642.0,1641.5,6.89105]
[1744651867585,6.09073,1641.9,1641.6,6.09149]
[1744651867818,6.09088,1641.8,1641.5,7.93426688]
[1744651868115,6.09088,1641.8,1641.5,14.02614688]
[1744651868617,12.18156,1641.9,1641.5,14.02614688]
[1744651869320,6.0905,1641.9,1641.5,1.84231688]
[1744651869625,6.09335,1641.2,1640.8,6.09444]
[1744651869804,6.87628,1641.5,1640.9,4.0]
[1744651869805,6.09347,1641.1,1640.9,4.0]
[1744651870123,6.09347,1641.1,1640.7,12.98881]
[1744651870521,3.7843,1641.4,1640.7,4.3402188]
[1744651870692,6.09318,1641.2,1640.9,6.09418]
[1744651871083,6.0935,1641.1,1640.8,6.52860188]
[1744651871309,12.18718,1641.1,1640.8,0.43402188]
[1744651871527,6.09386,1641.0,1640.7,12.9889]
[1744651871728,6.09452,1640.9,1640.6,7.025]
[1744651872012,6.09454,1640.9,1640.5,0.7991]
[1744651872211,0.7843,1641.2,1640.5,3.5411188]
[1744651872416,6.09358,1641.1,1640.8,6.09439]
[1744651872622,0.7843,1641.2,1640.6,6.44918188]
[1744651872833,12.18892,1640.9,1640.5,12.19119]
[1744651873036,6.09438,1640.9,1640.5,12.19119]
[1744651873239,6.09456,1640.9,1640.4,0.7991]
[1744651873540,6.09456,1640.9,1640.5,12.19101]
[1744651873856,12.18884,1640.9,1640.5,7.394451]
[1744651874012,6.0944,1640.9,1640.6,6.09528]
[1744651874213,7.3254188,1641.2,1640.6,6.09533]
[1744651874214,6.09353,1641.1,1640.6,6.09533]
[1744651874546,3.7843,1641.2,1640.6,6.09521]
[1744651874718,6.09421,1641.0,1640.6,12.19041]
[1744651874906,6.09421,1641.0,1640.6,8.115241]
[1744651875101,6.0935,1641.1,1640.8,6.09453]
[1744651875329,9.87748,1641.2,1640.6,8.115321]
[1744651875330,6.094,1641.0,1640.6,8.115321]
[1744651875547,0.804,1640.9,1640.6,13.409531]
[1744651875746,6.09472,1640.8,1640.5,6.09563]
[1744651876756,12.18953,1640.8,1640.5,6.09563]
[1744651877041,6.09505,1640.7,1640.4,6.09601]
[1744651877202,6.09465,1640.8,1640.3,7.026]
[1744651877203,6.09551,1640.6,1640.3,13.12223]
[1744651877399,6.09498,1640.7,1640.4,6.09592]
[1744651878410,6.09498,1640.7,1640.3,19.2673096]
[1744651878716,6.09726,1640.1,1639.8,0.7904]
[1744651879048,6.09726,1640.1,1639.9,4.0]
[1744651879236,0.8139,1640.4,1639.9,4.47904]
[1744651879438,0.8139,1640.6,1640.4,6.09591]
[1744651879644,6.09496,1640.7,1640.4,6.09591]
[1744651880010,12.1901,1640.7,1640.4,6.09591]
[1744651880344,0.8301,1640.8,1640.4,1.219229]
[1744651880550,6.09534,1640.6,1640.3,6.87551]
[1744651880750,6.095,1640.7,1640.4,6.096]
[1744651880918,6.09463,1640.8,1640.4,12.19191]
[1744651881120,6.09499,1640.7,1640.4,6.09591]
[1744651881320,6.09463,1640.8,1640.4,7.393047]
[1744651881757,6.09498,1640.7,1640.4,13.488967]
[1744651882046,6.09499,1640.7,1640.4,7.393047]
[1744651882260,6.09463,1640.8,1640.4,13.488987]
[1744651882749,0.7972,1641.0,1640.5,0.06095235]
[1744651882909,12.18722,1641.1,1640.7,6.09481]
[1744651883113,2.212441,1641.1,1640.6,6.86634]
[1744651883351,6.09438,1640.9,1640.6,13.88634]
[1744651883537,6.09438,1640.9,1640.6,19.98151]
[1744651883733,6.09438,1640.9,1640.6,13.88627]
[1744651884153,12.18878,1640.9,1640.6,13.88627]
[1744651884351,6.09458,1640.8,1640.6,7.02]
[1744651884539,6.8915,1640.9,1640.6,7.02]
[1744651884745,6.8915,1640.9,1640.6,13.81726]
[1744651885053,12.98588,1640.9,1640.6,13.81726]
[1744651885349,12.98597,1640.9,1640.6,13.81726]
[1744651885657,12.98597,1640.9,1640.6,7.722]
[1744651885658,6.8915,1640.9,1640.6,7.722]
[1744651885859,12.98601,1640.9,1640.6,7.722]
[1744651886152,6.89141,1640.9,1640.6,7.722]
[1744651886521,6.09475,1640.8,1640.6,7.02]
[1744651886851,6.09495,1640.7,1640.6,7.02]
[1744651887024,6.0956,1640.6,1640.3,7.021]
[1744651887228,0.7691,1640.5,1640.1,6.09709]
[1744651887419,6.09618,1640.4,1640.1,6.706768]
[1744651887750,6.0952,1640.7,1640.3,12.19264]
[1744651887751,6.09542,1640.6,1640.3,12.19264]
[1744651887968,6.09542,1640.6,1640.3,6.09632]
[1744651888135,6.09542,1640.6,1640.3,6.09631]
[1744651889477,6.86395,1640.8,1640.4,6.90662]
[1744651889635,6.86395,1640.8,1640.4,0.8108]
[1744651889636,0.7691,1640.8,1640.4,0.8108]
[1744651889838,6.0953,1640.7,1640.4,0.8108]
[1744651890173,6.86381,1640.8,1640.2,13.95001]
[1744651890354,6.09574,1640.5,1640.2,20.04669]
[1744651890561,6.09621,1640.4,1640.2,9.9189398]
[1744651890732,6.0958,1640.5,1640.2,9.9189398]
[1744651890938,12.19171,1640.5,1640.2,16.0157198]
[1744651891471,12.19171,1640.5,1640.1,6.706858]
[1744651891472,10.4790088,1640.5,1639.9,1.22994]
[1744651891636,6.0962,1640.4,1640.1,6.09702]
[1744651891835,13.00148,1640.7,1640.2,0.7812]
[1744651892053,13.00148,1640.7,1640.2,1.47510359]
[1744651892255,6.86149,1640.7,1640.4,6.09588]
[1744651892469,6.09534,1640.6,1640.3,6.09634]
[1744651892631,6.09534,1640.6,1640.3,12.19264]
[1744651892839,12.95661,1640.7,1640.3,12.19262]
[1744651893067,6.86149,1640.7,1640.4,6.09606]
[1744651893252,6.09507,1640.7,1640.4,6.09596]
[1744651893459,6.09507,1640.7,1640.3,7.46297236]
[1744651893742,6.95769,1640.9,1640.5,6.0955]
[1744651893938,13.05227,1640.9,1640.5,6.0955]
[1744651894239,13.05227,1640.9,1640.5,6.09555]
[1744651894240,6.09463,1640.8,1640.5,6.09555]
[1744651894440,0.7942,1641.1,1640.9,6.09407]
[1744651894678,6.09317,1641.2,1640.9,6.09407]
[1744651894841,6.96749,1641.3,1640.6,10.5631188]
[1744651895055,6.09365,1641.1,1640.7,6.0949]
[1744651895269,6.09436,1640.9,1640.6,13.11728]
[1744651895589,6.92148,1641.0,1640.7,6.09482]
[1744651895792,0.8275,1641.0,1640.7,6.09482]
[1744651895944,12.93994,1641.2,1640.8,6.09421]
[1744651896144,0.7535,1641.2,1640.8,6.09421]
[1744651896458,12.94019,1641.2,1640.9,6.09406]
[1744651896672,6.09348,1641.1,1640.8,6.09449]
[1744651897049,6.09348,1641.1,1640.8,12.18895]
[1744651897249,6.09348,1641.1,1640.8,6.09446]
[1744651897473,6.09388,1641.0,1640.7,6.09484]
[1744651897682,12.93995,1641.2,1640.8,6.09447]
[1744651898190,12.93995,1641.2,1640.8,12.18894]
[1744651898689,6.09359,1641.1,1640.8,6.09447]
[1744651899182,6.09421,1640.9,1640.6,13.11725]
[1744651899343,12.18788,1641.0,1640.6,19.21245]
[1744651899543,12.18788,1641.0,1640.6,21.215225]
[1744651899785,0.992429,1641.4,1640.7,0.7612]
[1744651899942,6.09311,1641.2,1640.9,6.0941]
[1744651900582,12.18644,1641.2,1640.9,6.0941]
[1744651901082,16.01242,1641.5,1640.5,0.8117]
[1744651901083,3.5411188,1641.0,1640.5,0.8117]
[1744651901384,6.13999,1641.0,1640.5,0.8117]
[1744651901573,12.18947,1640.8,1640.6,4.0]
[1744651901746,6.09495,1640.7,1640.5,0.8117]
[1744651902077,6.09607,1640.4,1640.2,48.20890359]
[1744651902399,13.453954,1640.7,1640.2,48.20890359]
[1744651902566,6.13999,1640.7,1640.5,6.09552]
[1744651903450,6.13999,1640.7,1640.4,12.19206]
[1744651903652,6.13999,1640.7,1640.4,13.894226]
[1744651903952,6.0955,1640.6,1640.3,4.8296]
[1744651904147,18.33022,1640.7,1640.3,0.8296]
[1744651904394,6.09541,1640.6,1640.3,0.8296]
[1744651904689,6.0958,1640.5,1640.3,0.8296]
[1744651905042,6.09533,1640.6,1640.0,7.021]
[1744651905243,6.09616,1640.4,1640.1,4.0]
[1744651905486,12.19306,1640.3,1640.1,4.0]
[1744651905788,6.91171,1640.2,1640.1,4.0]
[1744651905982,9.91171,1640.2,1640.1,4.0]
[1744651906784,6.09806,1639.9,1639.7,7.021]
[1744651906949,6.0992,1639.6,1639.2,0.7846]
[1744651907149,6.0992,1639.6,1639.3,11.022]
[1744651907387,6.09797,1639.9,1639.4,0.06099131]
[1744651907568,6.09847,1639.8,1639.4,0.7624]
[1744651907770,6.09929,1639.6,1639.4,1.94084]
[1744651907957,6.09929,1639.6,1639.4,0.7624]
[1744651908160,6.09942,1639.5,1639.4,0.7624]
[1744651908390,6.09885,1639.7,1639.4,4.7624]
[1744651908957,6.09926,1639.6,1639.4,4.7624]
[1744651909287,6.09942,1639.5,1639.2,0.7886]
[1744651909502,12.19905,1639.5,1639.2,0.7886]
[1744651909788,6.10016,1639.3,1639.1,1e-05]
[1744651909950,6.09927,1639.6,1639.2,3.7599]
[1744651910151,6.09943,1639.5,1639.2,3.7599]
[1744651910360,0.7772,1639.4,1638.4,0.7921]
[1744651910563,0.7772,1639.1,1638.3,0.7921]
[1744651910800,0.7772,1639.3,1638.7,3.5411188]
[1744651911097,6.09979,1639.4,1638.9,6.10157]
[1744651911284,6.09979,1639.4,1638.6,0.7921]
[1744651911487,0.7755,1639.2,1638.3,0.7831]
[1744651911676,6.10282,1638.6,1638.3,0.7831]
[1744651911874,12.20581,1638.6,1638.3,0.7831]
[1744651912080,6.10282,1638.6,1638.3,0.7831]
[1744651912308,6.10333,1638.5,1638.3,0.7831]
[1744651912464,6.10282,1638.6,1638.3,0.7831]
[1744651912662,6.10244,1638.7,1638.3,1.56311]
[1744651912901,6.10326,1638.5,1638.3,1.56311]
[1744651913199,6.10388,1638.3,1638.2,7.017]
[1744651913400,6.10316,1638.5,1638.2,7.017]
[1744651913767,12.20571,1638.6,1638.2,7.017]
[1744651913963,6.10328,1638.5,1638.2,7.7237]
[1744651915600,6.103,1638.6,1638.2,7.7237]
[1744651915770,6.10315,1638.5,1638.2,7.7237]
[1744651915968,6.10356,1638.4,1638.2,7.7237]
[1744651916702,6.10356,1638.4,1638.2,7.017]
[1744651916901,6.10388,1638.3,1638.2,7.017]
[1744651917109,12.20656,1638.5,1638.1,0.05]
[1744651917290,6.10293,1638.6,1638.1,6.21545853]
[1744651917495,6.10348,1638.5,1638.1,0.85342132]
[1744651917674,6.13999,1638.7,1638.1,0.79238279]
[1744651917876,6.10327,1638.5,1638.1,0.79238279]
[1744651918076,6.10374,1638.4,1638.1,0.79238279]
[1744651918328,6.10319,1638.5,1638.1,0.79238279]
[1744651918625,6.10372,1638.4,1638.1,0.79238279]
[1744651918904,6.10426,1638.2,1638.1,0.05]
[1744651919284,10.49913982,1638.2,1638.1,1e-05]
[1744651919484,7.35392491,1638.2,1638.1,1e-05]
[1744651921075,9.88663,1638.1,1638.0,9.4e-06]
[1744651921311,11.17202249,1638.1,1638.0,9.4e-06]
[1744651922076,10.62202249,1638.1,1638.0,9.4e-06]
[1744651922375,11.17202249,1638.1,1638.0,9.4e-06]
[1744651923518,6.10798,1637.2,1637.1,0.05]
[1744651923809,6.10719,1637.5,1637.1,6.15825]
[1744651924010,6.10719,1637.5,1637.3,0.7759]
[1744651924211,6.10706,1637.5,1637.2,0.615825]
[1744651924376,6.10736,1637.4,1637.1,0.8799]
[1744651924573,6.1071,1637.5,1637.1,0.8799]
[1744651924798,12.21331,1637.6,1637.1,8.389175]
[1744651925003,6.10687,1637.5,1637.1,8.389175]
[1744651925314,6.10688,1637.5,1637.1,14.497505]
[1744651925562,6.10744,1637.4,1637.1,2.280945]
[1744651925717,12.21562,1637.3,1637.1,0.8799]
[1744651925912,6.10774,1637.3,1637.1,0.05]
[1744651926446,6.10729,1637.4,1637.1,0.05]
[1744651926660,12.21474,1637.4,1637.1,0.05]
[1744651926849,6.1078,1637.3,1637.1,0.05]
[1744651927254,12.21574,1637.3,1637.1,0.05]
[1744651927454,6.1078,1637.3,1637.1,0.05]
[1744651927656,6.10798,1637.2,1637.1,0.05]
[1744651928357,6.13999,1637.5,1637.2,6.10786]
[1744651928558,12.24716,1637.5,1637.1,12.2665]
[1744651928721,6.10727,1637.4,1637.1,6.15819]
[1744651929116,18.35397,1637.5,1637.1,12.2664]
[1744651929340,18.35406,1637.5,1637.1,6.15819]
[1744651929541,12.24694,1637.5,1637.1,6.15819]
[1744651929755,12.24694,1637.5,1637.2,12.21572]
[1744651929917,6.10623,1637.7,1637.4,6.10715]
[1744651930130,12.24583,1637.8,1637.4,6.1071]
[1744651930330,12.24583,1637.8,1637.3,0.7766]
[1744651930519,6.87538249,1638.1,1637.4,0.06106435]
[1744651930718,6.10497,1638.1,1637.7,6.10597]
[1744651930923,12.20995,1638.1,1637.7,12.21196]
[1744651931120,6.91829,1638.2,1637.9,6.10524]
[1744651931474,6.91829,1638.2,1637.8,6.10574]
[1744651931475,6.10473,1638.1,1637.8,6.10574]
[1744651931640,6.10436,1638.2,1637.9,6.10528]
[1744651931841,6.10436,1638.2,1637.9,6.90828]
[1744651932042,6.88273,1638.4,1638.0,6.10468]
[1744651932251,12.20749,1638.4,1638.0,12.20957]
[1744651932570,13.45544371,1638.6,1638.2,6.10394]
[1744651932784,6.10327,1638.5,1638.1,6.16567284]
[1744651932938,12.20659,1638.5,1638.1,12.20914]
[1744651933262,6.13999,1638.6,1638.0,1.301257]
[1744651933263,6.10402,1638.3,1638.0,1.301257]
[1744651933463,6.10358,1638.4,1638.0,7.406097]
[1744651933665,6.1032,1638.5,1638.0,7.406097]
[1744651933666,12.20647,1638.5,1638.1,12.20892]
[1744651933829,12.24283,1638.6,1638.2,6.10402]
[1744651934032,6.13999,1638.6,1638.2,6.10399]
[1744651934265,6.13999,1638.6,1638.3,6.10374]
[1744651934455,12.20592,1638.6,1638.2,6.10399]
[1744651934630,6.10288,1638.6,1638.2,12.818479]
[1744651934837,6.10288,1638.6,1638.3,6.10383]
[1744651935168,13.0093,1638.8,1638.4,6.10328]
[1744651935370,6.90719,1638.8,1638.3,6.90835]
[1744651935537,13.00936,1638.8,1638.4,6.10325]
[1744651935734,13.00936,1638.8,1638.4,12.20661]
[1744651935944,6.90719,1638.8,1638.4,7.404621]
[1744651936162,6.13999,1638.8,1638.5,6.10301]
[1744651936348,6.13999,1638.8,1638.6,6.1026]
[1744651936554,0.825,1639.2,1638.6,6.10277]
[1744651936878,6.92422,1639.6,1639.2,6.10018]
[1744651937079,12.19949,1639.5,1639.1,6.91287]
[1744651937377,12.19988,1639.4,1639.1,0.8121]
[1744651937790,3.60267982,1639.3,1638.7,6.10228]
[1744651937933,6.10068,1639.2,1638.8,6.10183]
[1744651938139,6.10068,1639.2,1638.6,6.85873]
[1744651938140,6.10173,1638.9,1638.6,0.756]
[1744651938351,6.711903,1638.9,1638.6,0.756]
[1744651938649,12.20216,1639.1,1638.7,12.2045]
[1744651938982,6.10097,1639.1,1638.7,12.2045]
[1744651939279,6.10097,1639.1,1638.7,6.10225]
[1744651939481,6.10151,1639.0,1638.6,6.85865]
[1744651939677,0.610151,1639.0,1638.6,0.756]
[1744651939881,0.8126,1639.2,1638.8,6.102]
[1744651940043,6.10145,1639.0,1638.7,6.10224]
[1744651940238,6.10145,1639.0,1638.6,6.85855]
[1744651940443,6.10171,1638.9,1638.6,6.85855]
[1744651940872,6.10219,1638.8,1638.6,0.756]
[1744651941055,12.20222,1639.1,1638.7,6.10235]
[1744651941256,7.402442,1639.1,1638.7,6.10225]
[1744651941461,7.402442,1639.1,1638.8,6.10199]
[1744651942284,7.402442,1639.1,1638.7,6.10225]
[1744651942285,6.1013,1639.0,1638.7,6.10225]
[1744651942492,6.1013,1639.0,1638.7,12.20451]
[1744651942668,6.91321,1639.2,1638.9,6.10156]
[1744651942985,6.10055,1639.2,1638.9,6.10158]
[1744651943184,7.32063,1639.2,1638.8,6.10196]
[1744651943871,1.22008,1639.2,1638.9,12.20301]
[1744651944044,6.10035,1639.3,1638.9,12.20301]
[1744651944246,6.10035,1639.3,1639.0,6.10125]
[1744651944544,6.10054,1639.2,1638.9,6.10153]
[1744651944746,3.60267982,1639.3,1638.6,3.756]
[1744651944967,3.60267982,1639.3,1638.6,6.85865]
[1744651944968,6.1018,1638.9,1638.6,6.85865]
[1744651945157,0.61018,1638.8,1638.6,0.756]
[1744651945356,6.1018,1638.9,1638.6,6.85876]
[1744651945683,12.20365,1638.9,1638.6,6.85876]
[1744651945981,6.10136,1639.0,1638.6,6.85864]
[1744651946178,6.10179,1638.9,1638.6,6.85866]
[1744651946372,12.2036,1638.9,1638.6,6.85866]
[1744651946887,6.10179,1638.9,1638.6,6.85866]
[1744651947066,6.10135,1639.0,1638.6,12.96127]
[1744651947273,12.99132,1639.1,1638.7,6.10224]
[1744651947467,1.299132,1639.0,1638.7,12.2045]
[1744651947674,1.299132,1639.0,1638.8,6.10202]
[1744651948081,3.8018,1639.4,1639.0,6.89487]
[1744651948282,6.10026,1639.3,1639.0,6.89476]
[1744651948598,6.10026,1639.3,1639.0,6.89474]
[1744651949494,6.10026,1639.3,1639.0,0.7936]
[1744651949797,12.890936,1639.3,1639.0,0.7936]
[1744651949964,6.790466,1639.3,1639.0,0.7936]
[1744651950160,12.890936,1639.3,1639.0,0.7936]
[1744651950359,18.33915,1639.5,1639.1,6.10054]
[1744651950594,12.23952,1639.5,1639.1,6.10054]
[1744651950795,13.03668,1639.6,1639.1,0.06100435]
[1744651950999,13.03668,1639.6,1639.3,6.09992]
[1744651951000,12.23917,1639.6,1639.3,6.09992]
[1744651951396,12.23917,1639.6,1639.2,6.10045]
[1744651951716,6.09966,1639.5,1639.1,6.1006]
[1744651951895,6.09991,1639.4,1639.1,6.1006]
[1744651952100,6.10019,1639.3,1639.0,12.99604]
[1744651952263,0.8117,1639.5,1639.1,6.1009]
[1744651952463,6.91135,1639.5,1639.1,6.1009]
[1744651952658,6.91135,1639.5,1639.2,6.10035]
[1744651952897,18.33832,1639.6,1639.2,12.20076]
[1744651953200,12.23911,1639.6,1639.0,6.89484]
[1744651953397,6.13999,1639.6,1639.3,6.09982]
[1744651953764,6.13999,1639.6,1639.3,12.19986]
[1744651954100,6.13999,1639.6,1639.3,6.09982]
[1744651954469,6.13999,1639.6,1639.3,12.19986]
[1744651954679,12.23914,1639.6,1639.3,6.09982]
[1744651954899,6.13999,1639.6,1639.1,0.689484]
[1744651955076,6.13999,1639.6,1639.0,0.7936]
[1744651955077,12.1969,1639.8,1639.5,6.09941]
[1744651955272,12.1969,1639.8,1639.4,6.86285]
[1744651955473,12.1969,1639.8,1639.2,6.10053]
[1744651955474,6.09932,1639.6,1639.2,6.10043]
[1744651955679,6.09932,1639.6,1639.3,6.10008]
[1744651955898,6.09877,1639.7,1639.2,6.10053]
[1744651956106,6.09877,1639.7,1639.3,6.709953]
[1744651956273,12.19775,1639.7,1639.3,12.809993]
[1744651957113,12.19759,1639.7,1639.4,6.09969]
[1744651957407,6.09924,1639.6,1639.2,6.10042]
[1744651957703,6.0983,1639.8,1638.9,16.11935]
[1744651957906,6.09879,1639.7,1639.4,6.09942]
[1744651958104,14.40464338,1639.9,1639.2,6.10048]
[1744651958307,6.09959,1639.5,1639.2,6.10048]
[1744651958510,6.09959,1639.5,1639.2,6.10043]
[1744651958706,6.09959,1639.5,1639.2,6.10039]
[1744651958906,6.09959,1639.5,1639.2,7.39896]
[1744651959110,6.10004,1639.4,1639.1,0.7845]
[1744651959275,6.10004,1639.4,1639.1,6.88516]
[1744651959682,6.10004,1639.4,1639.1,12.98596]
[1744651960010,12.19908,1639.5,1639.1,12.98596]
[1744651960522,6.09951,1639.5,1639.2,6.1005]
[1744651960675,6.09951,1639.5,1639.1,6.88516]
[1744651960870,0.8054,1639.6,1639.1,6.88516]
[1744651960871,6.10002,1639.4,1639.1,6.88516]
[1744651961113,6.10002,1639.4,1639.1,13.674476]
[1744651961291,6.09995,1639.4,1639.1,13.674476]
[1744651961492,6.09951,1639.5,1639.1,13.674446]
[1744651961493,12.199,1639.5,1639.1,13.674446]
[1744651961698,6.94539,1639.6,1639.4,6.09965]
[1744651961890,6.13999,1639.6,1639.4,6.09965]
[1744651962093,6.13999,1639.6,1639.5,6.09942]
[1744651962692,6.13999,1639.6,1639.4,7.476895]
[1744651962898,6.13999,1639.6,1639.4,13.576525]
[1744651963102,6.13999,1639.6,1639.4,12.96656]
[1744651963329,6.13999,1639.6,1639.5,6.09942]
[1744651966409,6.89485,1640.0,1639.7,6.09856]
[1744651966612,6.89485,1640.0,1639.7,6.09854]
[1744651967403,12.99271,1640.0,1639.7,6.09854]
[1744651967606,0.7972,1640.0,1639.8,6.09817]
[1744651967840,6.09772,1640.0,1639.7,6.09854]
[1744651968337,13.02886,1640.2,1639.9,6.09789]
[1744651968510,13.02886,1640.2,1639.9,6.0978]
[1744651968718,13.02886,1640.2,1639.8,0.7527]
[1744651968938,12.19464,1640.1,1639.8,6.8509]
[1744651969141,6.09731,1640.1,1639.7,7.318391]
[1744651969313,1.912653,1640.1,1639.6,6.85164]
[1744651969637,6.09813,1639.9,1639.6,6.85164]
[1744651969836,6.09807,1639.9,1639.6,6.85162]
[1744651970438,12.1963,1639.9,1639.6,6.85162]
[1744651970945,6.09839,1639.8,1639.6,0.7527]
[1744651971111,6.09807,1639.9,1639.6,6.85172]
[1744651971313,12.19618,1639.9,1639.6,6.85172]
[1744651971519,6.09807,1639.9,1639.6,6.85172]
[1744651971736,12.19621,1639.9,1639.6,6.85163]
[1744651971925,13.415831,1639.9,1639.6,6.85163]
[1744651972432,13.415811,1639.9,1639.6,6.85163]
[1744651973531,6.09837,1639.8,1639.6,0.7527]
[1744651973739,12.23829,1639.8,1639.2,6.89852]
[1744651973914,6.0996,1639.5,1639.2,6.89852]
[1744651974264,6.10028,1639.3,1639.1,7.009]
[1744651974551,12.1999,1639.4,1639.1,6.10074]
[1744651974708,12.19988,1639.4,1639.1,6.10074]
[1744651974913,6.09984,1639.4,1639.1,6.10074]
[1744651975919,6.09984,1639.4,1639.0,6.89915]
[1744651976139,1.833931,1639.4,1639.0,6.89915]
[1744651976446,6.1003,1639.3,1639.0,6.89915]
[1744651976749,6.10026,1639.3,1639.0,6.89915]
[1744651976934,6.10026,1639.3,1639.0,13.00029]
[1744651977129,6.09979,1639.4,1639.1,6.1008]
[1744651977348,6.09979,1639.4,1639.1,12.20157]
[1744651977920,6.09979,1639.4,1639.1,6.10077]
[1744651978365,6.09979,1639.4,1639.1,12.20155]
[1744651978652,12.2395,1639.5,1639.2,12.20092]
[1744651978860,6.13999,1639.5,1639.3,6.10005]
[1744651979154,13.462579,1639.7,1639.4,6.09978]
[1744651979455,13.421419,1639.7,1639.4,6.09978]
[1744651979653,13.421419,1639.7,1639.3,12.2001]
[1744651979951,6.09906,1639.6,1639.3,6.10005]
[1744651980150,6.10033,1639.3,1639.0,6.89925]
[1744651980351,6.88986,1639.4,1639.0,6.89925]
[1744651980352,6.88979,1639.4,1639.1,6.10076]
[1744651980561,6.10018,1639.3,1639.0,0.7981]
[1744651980761,6.10018,1639.3,1639.0,13.00053]
[1744651980962,6.09955,1639.5,1639.1,6.10057]
[1744651981129,6.09982,1639.4,1639.1,6.1008]
[1744651981452,6.09982,1639.4,1639.1,6.1007]
[1744651981654,8.14653049,1639.5,1639.0,6.89928]
[1744651981655,6.10028,1639.3,1639.0,6.89928]
[1744651981821,6.10028,1639.3,1639.0,6.89925]
[1744651982344,6.09985,1639.4,1639.0,0.7981]
[1744651982544,7.52449505,1639.4,1639.0,6.89925]
[1744651982757,12.20062,1639.3,1639.0,6.89925]
[1744651983057,6.10017,1639.3,1639.0,6.89925]
[1744651983865,13.02489,1639.3,1639.0,6.10115]
[1744651984429,6.92457,1639.3,1639.0,6.10115]
[1744651984636,13.02488,1639.3,1639.0,6.10115]